fUSD/lending_fUSD_20251220
["ID","MTS","AMOUNT","RATE_DAILY","PERIOD"]
[399297622,1766254246163,-193.91643146,0.0002,2]
[399297623,1766254246173,-1002.91327817,0.000201,2]
[399297624,1766254246183,-966.9021731,0.00020102,2]
[399297625,1766254246194,-4509.7425371,0.00020102,2]
[399297626,1766254246203,-500.0,0.00020111,2]
[399297627,1766254246211,-500.0,0.00020111,2]
[399297628,1766254246220,-1000.0,0.00020116,2]
[399297629,1766254246230,-322.2189038,0.00020187,2]
[399297630,1766254246239,-1000.0,0.00020187,2]
[399297631,1766254246248,-210.7,0.00020223,2]
[399297632,1766254246258,-277.35679052,0.00020256,2]
[399297633,1766254246267,-334.5472959,0.00020256,2]
[399297634,1766254246276,-2000.0,0.000203,2]
[399297635,1766254246286,-8542.5,0.000203,2]
[399297636,1766254246296,-1000.0,0.00020795,2]
[399297637,1766254246305,-215.7450367,0.00020796,2]
[399297638,1766254246316,-1006.2595745,0.00020796,2]
[399297639,1766254246327,-1000.0,0.000208,2]
[399297640,1766254246337,-300.0,0.00021,2]
[399297641,1766254246346,-350.0,0.00021,2]
[399297642,1766254246355,-853.46645511,0.000213,2]
[399297643,1766254246364,-297.83,0.00021352,2]
[399297644,1766254246373,-1000.0,0.00021553,2]
[399297645,1766254246382,-8542.5,0.00021588,2]
[399297646,1766254246391,-287.61899177,0.00021625,2]
[399297647,1766254246401,-346.92554585,0.00021625,2]
[399297648,1766254246410,-1245.53,0.00021757,2]
[399297649,1766254246419,-343.86667428,0.00021796,2]
[399297650,1766254246429,-2000.0,0.0002189,2]
[399297651,1766254246438,-2000.0,0.0002189,2]
[399297652,1766254246447,-5000.0,0.00021918,2]
[399297653,1766254246457,-500.0,0.00021918,2]
[399297654,1766254246468,-318.28,0.00021918,2]
[399297655,1766254246478,-1000.0,0.0002197,2]
[399297656,1766254246488,-1000.0,0.0002197,2]
[399297657,1766254246498,-500.0,0.0002197,2]
[399297658,1766254246509,-500.0,0.0002197,2]
[399297659,1766254246518,-500.0,0.0002197,2]
[399297660,1766254246529,-500.0,0.0002197,2]
[399297661,1766254246539,-1302.14887411,0.0002197,2]
[399297662,1766254246548,-598.95449494,0.0002197,2]
[399297663,1766254246557,-500.0,0.00022,2]
[399297664,1766254246566,-1684.38,0.00022,7]
[399297665,1766254246575,-163.17,0.00022,2]
[399297666,1766254246585,-203.0,0.00022,15]
[399297667,1766254246593,-150.0,0.00022,14]
[399297668,1766254246603,-1326.0,0.00022328,2]
[399297669,1766254246611,-612.0,0.00022328,2]
[399297670,1766254246620,-1608.0,0.00022328,2]
[399297671,1766254246630,-2791.006,0.00022328,2]
[399297672,1766254246639,-1262.0,0.00022328,2]
[399297673,1766254246650,-518.0,0.00022328,2]
[399297674,1766254246659,-1197.0,0.00022328,2]
[399297675,1766254246669,-911.0,0.00022328,2]
[399297676,1766254246680,-2428.0,0.00022328,2]
[399297677,1766254246689,-562.0,0.00022328,2]
[399297678,1766254246698,-1768.65,0.000226,7]
[399297679,1766254246707,-321.87985655,0.000226,2]
[399297680,1766254246718,-1000.0,0.0002274,2]
[399297681,1766254246727,-3911.34,0.00022836,2]
[399297682,1766254246736,-8542.5,0.00022875,2]
[399297683,1766254246746,-298.26089446,0.00022994,2]
[399297684,1766254246755,-359.76179104,0.00022994,2]
[399297685,1766254246764,-1000.0,0.00023,14]
[399297686,1766254246773,-536.24751289,0.00023,2]
[399297687,1766254246782,-151.0,0.00023,2]
[399297688,1766254246791,-400.0,0.00023,2]
[399297689,1766254246800,-151.07,0.00023014,2]
[399297690,1766254246810,-1000.0,0.00023512,2]
[399297691,1766254246824,-1500.0,0.00023562,2]
[399297692,1766254246833,-180.25022088,0.00023667,2]
[399297693,1766254246843,-153.20553776,0.00023814,2]
[399297694,1766254246853,-260.000001,0.00024,2]
[399297695,1766254246862,-2000.0,0.00024,2]
[399297696,1766254246871,-8542.5,0.00024163,2]
[399297697,1766254246881,-309.29654756,0.00024363,2]
[399297698,1766254246891,-373.07297731,0.00024363,2]
[399297699,1766254246903,-1786.96684625,0.00024384,2]
[399297700,1766254246913,-1000.0,0.000245,2]
[399297701,1766254246922,-1684.38,0.000246,7]
[399297702,1766254246931,-157.38,0.00024658,2]
[399297703,1766254246942,-1000.0,0.00024658,2]
[399297704,1766254246951,-500.0,0.00024799,2]
[399297705,1766254246962,-511.85238157,0.00024799,2]
[399297706,1766254246971,-151.0,0.000248,7]
[399297707,1766254246981,-151.0,0.000248,7]
[399297708,1766254246992,-151.0,0.000248,7]
[399297709,1766254247005,-151.0,0.000248,7]
[399297710,1766254247014,-520257.96863,0.000248,3]
[399297711,1766254247023,-500.0,0.00024899,2]
[399297712,1766254247037,-500.0,0.00024899,2]
[399297713,1766254247046,-500.0,0.00024899,2]
[399297714,1766254247055,-500.0,0.00024899,2]
[399297715,1766254247065,-500.0,0.00024899,2]
[399297716,1766254247075,-326.287178,0.000249,2]
[399297717,1766254247084,-326.287178,0.000249,2]
[399297718,1766254247094,-326.287178,0.000249,2]
[399297719,1766254247103,-326.287178,0.000249,2]
[399297720,1766254247113,-30407.7954869,0.000249,3]
[399297721,1766254247122,-151.0,0.00025,2]
[399297722,1766254247132,-207.88,0.00025,14]
[399297723,1766254247141,-450.0,0.00025,2]
[399297724,1766254247151,-512.32849253,0.00025304,2]
[399297725,1766254247162,-500.0,0.00025304,2]
[399297726,1766254247171,-1326.0,0.00025328,2]
[399297727,1766254247183,-612.0,0.00025328,2]
[399297728,1766254247203,-1608.0,0.00025328,2]
[399297729,1766254247216,-1258.0,0.00025328,2]
[399297730,1766254247226,-518.0,0.00025328,2]
[399297731,1766254247239,-1197.0,0.00025328,2]
[399297732,1766254247250,-911.0,0.00025328,2]
[399297733,1766254247260,-2428.0,0.00025328,2]
[399297734,1766254247270,-8542.5,0.0002545,2]
[399297735,1766254247280,-500.0,0.00025616,2]
[399297736,1766254247289,-210.69413921,0.00025685,2]
[399297737,1766254247298,-853.46645511,0.000257,2]
[399297738,1766254247308,-320.74051982,0.00025732,2]
[399297739,1766254247318,-386.87667747,0.00025732,2]
[399297740,1766254247327,-1684.38,0.000264,7]
[399297741,1766254247336,-1000.0,0.00026676,2]
[399297742,1766254247346,-8542.5,0.00026738,2]
[399297743,1766254247355,-3671.573843,0.00027,2]
[399297744,1766254247365,-332.60791905,0.00027101,2]
[399297745,1766254247374,-401.19111454,0.00027101,2]
[399297746,1766254247383,-305.12,0.00027123,2]
[399297747,1766254247393,-150.53,0.00027123,2]
[399297748,1766254247403,-150.0,0.00027369,2]
[399297749,1766254247412,-481.0,0.00027397,4]
[399297750,1766254247421,-462.6,0.00027397,4]
[399297751,1766254247431,-350.8,0.00027397,4]
[399297752,1766254247446,-471.4,0.00027397,5]
[399297753,1766254247455,-363.2,0.00027397,4]
[399297754,1766254247465,-346.8,0.00027397,2]
[399297755,1766254247475,-352.2,0.00027397,3]
[399297756,1766254247484,-177.13411504,0.00027397,5]
[399297757,1766254247494,-790.0,0.00027397,7]
[399297758,1766254247503,-790.0,0.00027397,7]
[399297759,1766254247512,-284.94423932,0.00027397,7]
[399297760,1766254247522,-300.0,0.00027397,2]
[399297761,1766254247531,-500.0,0.00027397,14]
[399297762,1766254247541,-500.0,0.00027487,60]
[399297763,1766254247551,-500.0,0.00027487,60]
[399297764,1766254247561,-3329.64955116,0.00027533,2]
[399297765,1766254247571,-10843.4,0.00027671,2]
[399297766,1766254247580,-2000.0,0.000277,2]
[399297767,1766254247590,-692.9778887,0.000279,2]
[399297768,1766254247599,-4213.62818936,0.000279,2]
[399297769,1766254247609,-404.31061865,0.000279,2]
[399297770,1766254247621,-150.0,0.00027945,2]
[399297771,1766254247642,-187667.25053,0.00028,2]
[399297772,1766254247652,-151.0,0.00028,2]
[399297773,1766254247876,-8542.5,0.00028025,2]
[399297774,1766254247886,-1326.0,0.00028328,2]
[399297775,1766254247899,-612.0,0.00028328,2]
[399297776,1766254247909,-1608.0,0.00028328,2]
[399297777,1766254247918,-518.0,0.00028328,2]
[399297778,1766254247928,-1197.0,0.00028328,2]
[399297779,1766254247937,-911.0,0.00028328,2]
[399297780,1766254247947,-2428.0,0.00028328,2]
[399297781,1766254247959,-344.91441206,0.0002847,2]
[399297782,1766254247968,-416.03518578,0.0002847,2]
[399297783,1766254247978,-167.75,0.00028493,2]
[399297784,1766254247987,-1684.38,0.000285,7]
[399297785,1766254247996,-157.62,0.00028767,2]
[399297786,1766254248006,-150.0,0.00028767,2]
[399297787,1766254248015,-150.0,0.00028767,2]
[399297788,1766254248025,-150.0,0.00028767,2]
[399297789,1766254248034,-153.61,0.00028767,2]
[399297790,1766254248043,-150.0,0.00028767,2]
[399297791,1766254248052,-8542.5,0.00029313,2]
[399297792,1766254248061,-150.0,0.00029589,2]
[399297793,1766254248072,-150.0,0.00029589,2]
[399297794,1766254248083,-150.0,0.00029589,2]
[399297795,1766254248092,-357.6762453,0.00029839,2]
[399297796,1766254248103,-431.42848765,0.00029839,2]
[399297797,1766254248113,-500.0,0.00029999,60]
[399297798,1766254248123,-500.0,0.00029999,60]
[399297799,1766254248133,-151.0,0.0003,2]
[399297800,1766254248143,-10678.69,0.0003,7]
[399297801,1766254248152,-617.63904,0.0003,4]
[399297802,1766254248162,-853.46645511,0.000301,2]
[399297803,1766254248172,-659.21,0.00030137,2]
[399297804,1766254248182,-659.21,0.00030137,2]
[399297805,1766254248192,-659.21,0.00030137,2]
[399297806,1766254248201,-659.21,0.00030137,2]
[399297807,1766254248210,-151.0,0.000302,14]
[399297808,1766254248220,-152.0,0.00030389,7]
[399297809,1766254248230,-152.0,0.00030389,7]
[399297810,1766254248241,-152.0,0.00030389,7]
[399297811,1766254248252,-154.0,0.00030389,7]
[399297812,1766254248261,-152.0,0.00030389,7]
[399297813,1766254248271,-154.0,0.00030389,7]
[399297814,1766254248281,-152.0,0.00030389,7]
[399297815,1766254248291,-219.9981724,0.00030389,7]
[399297816,1766254248301,-152.0,0.00030389,7]
[399297817,1766254248311,-152.0,0.00030389,7]
[399297818,1766254248321,-152.0,0.00030389,7]
[399297819,1766254248331,-291.05951369,0.00030389,7]
[399297820,1766254248340,-8542.5,0.000306,2]
[399297821,1766254248351,-152.0,0.00031,3]
[399297822,1766254248360,-481.17,0.00031096,2]
[399297823,1766254248370,-481.17,0.00031096,2]
[399297824,1766254248380,-333.09007877,0.00031208,2]
[399297825,1766254248389,-447.3913417,0.00031208,2]
[399297826,1766254248399,-340.98,0.00031233,2]
[399297827,1766254248408,-1326.0,0.00031328,2]
[399297828,1766254248417,-612.0,0.00031328,2]
[399297829,1766254248427,-1608.0,0.00031328,2]
[399297830,1766254248436,-184.668,0.00031328,2]
[399297831,1766254248446,-1197.0,0.00031328,2]
[399297832,1766254248456,-911.0,0.00031328,2]
[399297833,1766254248465,-2428.0,0.00031328,2]
[399297834,1766254248476,-2000.0,0.000314,2]
[399297835,1766254248486,-196.14076795,0.000315,2]
[399297836,1766254248497,-150.0,0.000315,2]
[399297837,1766254248507,-173.23,0.000315,14]
[399297838,1766254248517,-152.0,0.00031864,4]
[399297839,1766254248529,-250.0,0.00032,7]
[399297840,1766254248538,-151.89,0.00032,2]
[399297841,1766254248548,-150.0,0.00032,2]
[399297842,1766254248558,-481.17,0.00032055,2]
[399297843,1766254248567,-463.94482134,0.00032577,2]
[399297844,1766254248577,-152.0,0.00032729,5]
[399297845,1766254248588,-406.59404754,0.00032877,2]
[399297846,1766254248598,-11481.31,0.000329,2]
[399297847,1766254248607,-50474.73441479,0.00033,2]
[399297848,1766254248616,-152.5497697,0.00033,2]
[399297849,1766254248626,-552.40228,0.00033,14]
[399297850,1766254248635,-535.36428,0.00033,8]
[399297851,1766254248645,-659.21,0.00033014,2]
[399297852,1766254248654,-1000.0,0.00033165,2]
[399297853,1766254248663,-193.11,0.000332,14]
[399297854,1766254248673,-1203.57838247,0.000335,2]
[399297855,1766254248683,-152.0,0.00033593,6]
[399297856,1766254248692,-11481.31,0.000337,2]
[399297857,1766254248702,-481.11077973,0.00033946,2]
[399297858,1766254248712,-183.81,0.00033973,2]
[399297859,1766254248722,-659.21,0.00033973,2]
[399297860,1766254248731,-659.21,0.00033973,2]
[399297861,1766254248741,-668.12,0.00033973,2]
[399297862,1766254248750,-659.21,0.00033973,2]
[399297863,1766254248760,-659.21,0.00033973,2]
[399297864,1766254248769,-659.21,0.00033973,2]
[399297865,1766254248778,-659.21,0.00033973,2]
[399297866,1766254248788,-659.21,0.00033973,2]
[399297867,1766254248797,-659.21,0.00033973,2]
[399297868,1766254248807,-659.21,0.00033973,2]
[399297869,1766254248817,-659.21,0.00033973,2]
[399297870,1766254248828,-659.21,0.00033973,2]
[399297871,1766254248838,-659.21,0.00033973,2]
[399297872,1766254248848,-659.21,0.00033973,2]
[399297873,1766254248858,-659.21,0.00033973,2]
[399297874,1766254248867,-151.0,0.00033973,28]
[399297875,1766254248876,-151.0,0.00033973,28]
[399297876,1766254248887,-201.947128,0.00033973,28]
[399297877,1766254248900,-151.0,0.00033973,7]
[399297878,1766254248910,-324.86639302,0.00034,2]
[399297879,1766254248920,-500.0,0.00034164,2]
[399297880,1766254248929,-199.0,0.00034246,30]
[399297881,1766254248941,-1197.0,0.00034328,2]
[399297882,1766254248951,-911.0,0.00034328,2]
[399297883,1766254248960,-470.08,0.00034328,2]
[399297884,1766254248971,-152.0,0.00034457,7]
[399297885,1766254248981,-1719.68687976,0.0003449,2]
[399297886,1766254248990,-853.46645511,0.000345,2]
[399297887,1766254248999,-150.8,0.00034521,2]
[399297888,1766254249009,-150.0,0.00034521,2]
[399297889,1766254249018,-150.0,0.00034521,2]
[399297890,1766254249027,-150.0,0.00034521,2]
[399297891,1766254249036,-150.0,0.00034521,2]
[399297892,1766254249047,-300.86,0.00034521,2]
[399297893,1766254249057,-150.0,0.00034521,2]
[399297894,1766254249067,-150.0,0.00034521,2]
[399297895,1766254249077,-150.0,0.00034521,2]
[399297896,1766254249086,-150.0,0.00034521,2]
[399297897,1766254249096,-150.0,0.00034521,2]
[399297898,1766254249105,-11481.31,0.000346,2]
[399297899,1766254249114,-150.39083071,0.00034701,7]
[399297900,1766254249123,-199.0,0.00034931,31]
[399297901,1766254249133,-479.81,0.00034932,2]
[399297902,1766254249143,-1361.4,0.00034932,2]
[399297903,1766254249152,-563.37,0.00034932,2]
[399297904,1766254249162,-1317.61,0.00034932,2]
[399297905,1766254249171,-250.0,0.00035,7]
[399297906,1766254249183,-10000.0,0.00035,5]
[399297907,1766254249193,-404.55136349,0.00035,2]
[399297908,1766254249203,-6026.32145809,0.00035,2]
[399297909,1766254249213,-257.040368,0.00035,30]
[399297910,1766254249223,-2000.0,0.000351,2]
[399297911,1766254249233,-472.73098297,0.00035315,2]
[399297912,1766254249243,-152.0,0.00035322,8]
[399297913,1766254249252,-150.73,0.00035342,2]
[399297914,1766254249261,-231.81,0.00035342,2]
[399297915,1766254249270,-459.6,0.00035616,20]
[399297916,1766254249279,-500.0,0.00035616,7]
[399297917,1766254249288,-500.0,0.00035616,7]
[399297918,1766254249297,-500.0,0.00035616,7]
[399297919,1766254249306,-500.0,0.00035616,7]
[399297920,1766254249315,-500.0,0.00035616,7]
[399297921,1766254249324,-500.0,0.00035616,7]
[399297922,1766254249335,-500.0,0.00035616,7]
[399297923,1766254249344,-213.7310198,0.00035616,7]
[399297924,1766254249355,-686.4,0.00035616,27]
[399297925,1766254249369,-544.8,0.00035616,21]
[399297926,1766254249378,-528.3,0.00035616,25]
[399297927,1766254249388,-200.7,0.00035616,21]
[399297928,1766254249397,-500.0,0.00035616,5]
[399297929,1766254249406,-500.0,0.00035616,7]
[399297930,1766254249415,-500.0,0.00035616,7]
[399297931,1766254249425,-500.0,0.00035616,7]
[399297932,1766254249435,-500.0,0.00035616,7]
[399297933,1766254249446,-500.0,0.00035616,7]
[399297934,1766254249456,-500.0,0.00035616,7]
[399297935,1766254249466,-500.0,0.00035616,7]
[399297936,1766254249476,-500.0,0.00035616,7]
[399297937,1766254249486,-500.0,0.00035616,7]
[399297938,1766254249495,-500.0,0.00035616,7]
[399297939,1766254249504,-500.0,0.00035616,7]
[399297940,1766254249514,-500.0,0.00035616,7]
[399297941,1766254249523,-500.0,0.00035616,7]
[399297942,1766254249532,-500.0,0.00035616,7]
[399297943,1766254249541,-500.0,0.00035616,7]
[399297944,1766254249550,-500.0,0.00035616,7]
[399297945,1766254249559,-500.0,0.00035616,7]
[399297946,1766254249569,-500.0,0.00035616,7]
[399297947,1766254249578,-500.0,0.00035616,7]
[399297948,1766254249588,-500.0,0.00035616,7]
[399297949,1766254249599,-500.0,0.00035616,7]
[399297950,1766254249615,-500.0,0.00035616,7]
[399297951,1766254249634,-580.26318315,0.00035616,7]
[399297952,1766254249645,-500.0,0.00035616,7]
[399297953,1766254249655,-500.0,0.00035616,7]
[399297954,1766254249664,-500.0,0.00035616,7]
[399297955,1766254249675,-500.0,0.00035616,7]
[399297956,1766254249686,-500.0,0.00035616,7]
[399297957,1766254249696,-500.0,0.00035616,7]
[399297958,1766254249705,-500.0,0.00035616,7]
[399297959,1766254249715,-500.0,0.00035616,7]
[399297960,1766254249724,-500.0,0.00035616,7]
[399297961,1766254249733,-500.0,0.00035616,7]
[399297962,1766254249743,-500.0,0.00035616,7]
[399297963,1766254249752,-500.0,0.00035616,7]
[399297964,1766254249762,-151.0,0.00035616,10]
[399297965,1766254249772,-151.0,0.00035616,10]
[399297966,1766254249782,-11481.31,0.000357,2]
[399297967,1766254249792,-481.17,0.0003589,2]
[399297968,1766254249802,-481.17,0.0003589,2]
[399297969,1766254249811,-481.17,0.0003589,2]
[399297970,1766254249821,-481.17,0.0003589,2]
[399297971,1766254249830,-481.17,0.0003589,2]
[399297972,1766254249840,-481.17,0.0003589,2]
[399297973,1766254249849,-481.17,0.0003589,2]
[399297974,1766254249858,-481.17,0.0003589,2]
[399297975,1766254249867,-481.17,0.0003589,2]
[399297976,1766254249877,-481.17,0.0003589,2]
[399297977,1766254249886,-481.17,0.0003589,2]
[399297978,1766254249900,-1000.0,0.0003589,5]
[399297979,1766254249910,-630.0,0.00035999,60]
[399297980,1766254249919,-500.0,0.00035999,60]
[399297981,1766254249928,-74814.47194393,0.00036,2]
[399297982,1766254249937,-256.14028245,0.00036,2]
[399297983,1766254249946,-232983.0834124,0.00036,2]
[399297984,1766254249955,-10780.79893983,0.00036,2]
[399297985,1766254249965,-152.38495104,0.00036,2]
[399297986,1766254249974,-579.77404115,0.00036,2]
[399297987,1766254249983,-1008.0,0.00036,15]
[399297988,1766254249993,-240.294029,0.00036,10]
[399297989,1766254250003,-639.81645564,0.00036164,5]
[399297990,1766254250012,-150.0,0.00036164,2]
[399297991,1766254250022,-150.0,0.00036164,2]
[399297992,1766254250031,-150.0,0.00036164,2]
[399297993,1766254250041,-150.0,0.00036164,2]
[399297994,1766254250050,-150.0,0.00036164,2]
[399297995,1766254250059,-1106.68,0.00036164,2]
[399297996,1766254250068,-553.79,0.00036164,2]
[399297997,1766254250077,-300.0,0.00036164,2]
[399297998,1766254250087,-150.0,0.00036164,2]
[399297999,1766254250097,-300.0,0.00036164,2]
[399298000,1766254250106,-553.79,0.00036164,2]
[399298001,1766254250115,-150.0,0.00036164,2]
[399298002,1766254250124,-553.79,0.00036164,2]
[399298003,1766254250133,-300.77,0.00036164,2]
[399298004,1766254250143,-150.0,0.00036164,2]
[399298005,1766254250152,-553.79,0.00036164,2]
[399298006,1766254250161,-150.0,0.00036164,2]
[399298007,1766254250170,-553.79,0.00036164,2]
[399298008,1766254250179,-150.0,0.00036164,2]
[399298009,1766254250189,-553.79,0.00036164,2]
[399298010,1766254250199,-150.0,0.00036164,2]
[399298011,1766254250208,-553.79,0.00036164,2]
[399298012,1766254250217,-553.79,0.00036164,2]
[399298013,1766254250227,-553.79,0.00036164,2]
[399298014,1766254250236,-553.79,0.00036164,2]
[399298015,1766254250285,-553.79,0.00036164,2]
[399298016,1766254250295,-553.79,0.00036164,2]
[399298017,1766254250304,-553.79,0.00036164,2]
[399298018,1766254250314,-553.79,0.00036164,2]
[399298019,1766254250323,-546.52,0.00036164,2]
[399298020,1766254250332,-152.0,0.00036186,9]
[399298021,1766254250341,-1684.38,0.000362,14]
[399298022,1766254250349,-11481.31,0.000366,2]
[399298023,1766254250357,-1599.158806,0.000368,2]
[399298024,1766254250366,-1940.98457771,0.000368,2]
[399298025,1766254250375,-481.17,0.00036849,2]
[399298026,1766254250384,-481.17,0.00036849,2]
[399298027,1766254250393,-481.17,0.00036849,2]
[399298028,1766254250403,-570.2,0.00036849,2]
[399298029,1766254250412,-14027.34613644,0.0003691,2]
[399298030,1766254250421,-598.073,0.00036998,47]
[399298031,1766254250430,-250.0,0.00037,7]
[399298032,1766254250439,-164.48162705,0.00037,2]
[399298033,1766254250448,-152.0,0.00037051,10]
[399298034,1766254250458,-11481.31,0.000372,2]
[399298035,1766254250466,-1197.0,0.00037328,2]
[399298036,1766254250475,-911.0,0.00037328,2]
[399298037,1766254250485,-500.0,0.00037551,2]
[399298038,1766254250494,-500.0,0.00037551,2]
[399298039,1766254250503,-500.063452,0.00037552,2]
[399298040,1766254250512,-500.0,0.00037552,2]
[399298041,1766254250521,-500.0,0.00037553,2]
[399298042,1766254250531,-499.9999,0.00037554,2]
[399298043,1766254250540,-4300.55998493,0.0003759,2]
[399298044,1766254250549,-1753.71,0.000378,14]
[399298045,1766254250558,-1674.47,0.000378,14]
[399298046,1766254250567,-200.63529418,0.0003788,2]
[399298047,1766254250576,-11481.31,0.000379,2]
[399298048,1766254250586,-152.0,0.00037915,11]
[399298049,1766254250596,-3000.0,0.00038,2]
[399298050,1766254250605,-3000.0,0.00038,2]
[399298051,1766254250614,-3000.0,0.00038,2]
[399298052,1766254250623,-3000.0,0.00038,2]
[399298053,1766254250632,-3000.0,0.00038,2]
[399298054,1766254250642,-3000.0,0.00038,2]
[399298055,1766254250651,-3000.0,0.00038,2]
[399298056,1766254250660,-3000.0,0.00038,2]
[399298057,1766254250670,-1684.38,0.00038,14]
[399298058,1766254250679,-16800.0,0.00038,5]
[399298059,1766254250689,-150.0,0.00038133,30]
[399298060,1766254250698,-593.27315595,0.00038133,30]
[399298061,1766254250708,-1537.94,0.00038356,120]
[399298062,1766254250717,-326.287178,0.00038614,2]
[399298063,1766254250726,-326.287178,0.00038614,2]
[399298064,1766254250736,-326.287178,0.00038614,2]
[399298065,1766254250745,-326.287178,0.00038614,2]
[399298066,1766254250755,-576.26026988,0.00038614,2]
[399298067,1766254250765,-300.0,0.00038614,2]
[399298068,1766254250774,-594.25824151,0.00038614,2]
[399298069,1766254250783,-363.48275521,0.00038614,2]
[399298070,1766254250793,-300.0,0.00038614,2]
[399298071,1766254250802,-300.0,0.00038614,2]
[399298072,1766254250811,-300.0,0.00038614,2]
[399298073,1766254250821,-300.0,0.00038614,2]
[399298074,1766254250830,-300.0,0.00038614,2]
[399298075,1766254250840,-300.0,0.00038614,2]
[399298076,1766254250850,-302.53170336,0.00038614,2]
[399298077,1766254250861,-300.0,0.00038614,2]
[399298078,1766254250871,-576.26026986,0.00038614,2]
[399298079,1766254250881,-302.65974983,0.00038614,2]
[399298080,1766254250891,-300.0,0.00038614,2]
[399298081,1766254250902,-303.70558288,0.00038614,2]
[399298082,1766254250910,-300.0,0.00038614,2]
[399298083,1766254250918,-300.0,0.00038614,2]
[399298084,1766254250927,-367.23919955,0.00038614,2]
[399298085,1766254250938,-300.0,0.00038614,2]
[399298086,1766254250947,-300.0,0.00038614,2]
[399298087,1766254250956,-302.91346157,0.00038614,2]
[399298088,1766254250966,-300.0,0.00038614,2]
[399298089,1766254250975,-300.0,0.00038614,2]
[399298090,1766254250983,-510.18573231,0.00038614,2]
[399298091,1766254250992,-300.0,0.00038614,2]
[399298092,1766254251002,-300.0,0.00038614,2]
[399298093,1766254251012,-594.25824151,0.00038614,2]
[399298094,1766254251021,-363.48275521,0.00038614,2]
[399298095,1766254251031,-300.0,0.00038614,2]
[399298096,1766254251043,-300.0,0.00038614,2]
[399298097,1766254251052,-300.0,0.00038614,2]
[399298098,1766254251061,-300.0,0.00038614,2]
[399298099,1766254251070,-302.70055519,0.00038614,2]
[399298100,1766254251079,-300.0,0.00038614,2]
[399298101,1766254251088,-302.53170336,0.00038614,2]
[399298102,1766254251097,-300.0,0.00038614,2]
[399298103,1766254251106,-809.01379866,0.00038614,2]
[399298104,1766254251116,-302.65974983,0.00038614,2]
[399298105,1766254251127,-300.0,0.00038614,2]
[399298106,1766254251136,-303.70558288,0.00038614,2]
[399298107,1766254251144,-300.0,0.00038614,2]
[399298108,1766254251153,-300.0,0.00038614,2]
[399298109,1766254251162,-367.23919955,0.00038614,2]
[399298110,1766254251171,-314.13585639,0.00038614,2]
[399298111,1766254251180,-300.0,0.00038614,2]
[399298112,1766254251190,-302.91346157,0.00038614,2]
[399298113,1766254251199,-524.82977987,0.00038614,2]
[399298114,1766254251207,-361.53015896,0.00038614,2]
[399298115,1766254251216,-510.18573231,0.00038614,2]
[399298116,1766254251225,-300.0,0.00038614,2]
[399298117,1766254251234,-300.0,0.00038614,2]
[399298118,1766254251244,-594.25824151,0.00038614,2]
[399298119,1766254251253,-363.48275521,0.00038614,2]
[399298120,1766254251262,-300.0,0.00038614,2]
[399298121,1766254251271,-300.0,0.00038614,2]